bitfinex/quotes_SOLUSD_20250818
["timestamp","ask_amount","ask_price","bid_price","bid_amount"]
[1755527134497,1e-08,182.44,182.43,52.06595513]
[1755527134682,13.4616174,182.44,182.43,68.46595513]
[1755527134989,13.4616174,182.44,182.43,63.08777013]
[1755527135997,1e-08,182.44,182.43,63.08777013]
[1755527137278,13.4616174,182.44,182.43,63.08777013]
[1755527137603,1e-08,182.44,182.43,63.08777013]
[1755527138710,13.4616174,182.44,182.42,19.17795093]
[1755527138871,1e-08,182.44,182.43,42.42]
[1755527139676,1e-08,182.44,182.43,47.90155456]
[1755527139993,13.4616174,182.44,182.43,47.90155456]
[1755527140500,1e-08,182.44,182.43,63.00777013]
[1755527140999,13.4616174,182.44,182.43,5.48155456]
[1755527141208,13.4616174,182.44,182.43,42.48]
[1755527141801,13.4616174,182.44,182.43,47.96155456]
[1755527142100,13.4616174,182.44,182.41,42.48]
[1755527142396,1e-08,182.44,182.42,42.48]
[1755527143294,1e-08,182.44,182.41,42.46]
[1755527143480,13.46161739,182.42,182.41,42.46]
[1755527145083,13.46161739,182.42,182.41,47.94215558]
[1755527145291,1e-08,182.44,182.41,47.94215558]
[1755527145494,13.46161739,182.42,182.41,47.94215558]
[1755527146505,1e-08,182.44,182.42,15.10621557]
[1755527146704,1e-08,182.44,182.43,57.48621557]
[1755527146880,1e-08,182.44,182.43,57.64621557]
[1755527147075,1e-08,182.44,182.43,71.10783296]
[1755527147679,1e-08,182.44,182.43,97.10783296]
[1755527148508,1e-08,182.44,182.43,102.58938752]
[1755527151689,1e-08,182.44,182.43,118.90929752]
[1755527157320,1e-08,182.44,182.43,98.48577232]
[1755527157702,1e-08,182.44,182.43,55.94577232]
[1755527157900,1e-08,182.44,182.43,98.16577232]
[1755527159021,1e-08,182.44,182.43,84.70415493]
[1755527159225,1e-08,182.44,182.43,98.08577232]
[1755527161714,1e-08,182.44,182.43,84.62415493]
[1755527161916,1e-08,182.44,182.43,98.08577232]
[1755527162627,3.65484764,182.59,182.47,41.10621557]
[1755527162818,3.65484764,182.59,182.51,13.46161739]
[1755527163021,2.85736848,182.55,182.53,15.10621557]
[1755527163200,13.46161739,182.57,182.54,42.16]
[1755527163400,13.46161739,182.56,182.54,42.16]
[1755527163602,2.85752775,182.55,182.54,42.16]
[1755527163814,2.85752775,182.55,182.54,47.63825134]
[1755527164214,2.85752775,182.55,182.54,62.74446691]
[1755527164612,2.85752775,182.55,182.54,42.14]
[1755527164810,16.31914514,182.55,182.54,42.14]
[1755527165224,2.85752775,182.55,182.54,42.14]
[1755527165498,16.31914514,182.55,182.54,42.14]
[1755527167133,2.85752775,182.55,182.54,42.14]
[1755527167301,16.31914514,182.55,182.54,42.14]
[1755527169107,16.31914514,182.55,182.54,42.06]
[1755527169326,2.85752775,182.55,182.54,42.06]
[1755527169630,16.31914514,182.55,182.54,42.06]
[1755527170131,16.31914514,182.55,182.49,20.58590523]
[1755527170349,2.85752775,182.55,182.5,42.04]
[1755527170635,13.46161739,182.52,182.5,42.04]
[1755527170822,2.85752775,182.55,182.51,15.10621557]
[1755527171006,16.31914514,182.55,182.53,5.47855147]
[1755527171311,13.46161739,182.54,182.5,5.47945205]
[1755527171518,13.46161739,182.53,182.51,42.1]
[1755527171727,2.85752775,182.55,182.51,42.1]
[1755527172133,13.46161739,182.53,182.51,42.1]
[1755527172914,2.85752775,182.55,182.51,42.1]
[1755527173114,13.46161739,182.54,182.51,42.1]
[1755527173340,13.46161739,182.54,182.52,5.47885163]
[1755527173537,13.46161739,182.54,182.53,42.06]
[1755527175333,13.46161739,182.54,182.51,42.02]
[1755527175540,13.46161739,182.52,182.51,42.02]
[1755527176446,13.46161739,182.52,182.51,41.98]
[1755527176651,2.85752775,182.55,182.51,41.98]
[1755527176938,2.85752775,182.55,182.52,41.96]
[1755527177344,8.33552905,182.55,182.52,41.96]
[1755527177544,8.33552905,182.55,182.48,20.58617342]
[1755527177753,8.33552905,182.55,182.49,41.98]
[1755527178121,13.46161739,182.5,182.49,41.98]
[1755527178434,13.46161739,182.5,182.47,5.48033187]
[1755527178630,13.46161739,182.48,182.46,5.48060639]
[1755527178826,13.46161739,182.47,182.43,15.10621557]
[1755527179023,13.46161739,182.45,182.44,41.94]
[1755527180948,5.47996536,182.49,182.44,41.94]
[1755527181147,13.46161739,182.45,182.44,41.94]
[1755527181651,5.47945205,182.5,182.44,41.94]
[1755527181842,13.46161739,182.45,182.44,41.94]
[1755527182229,5.47945205,182.5,182.44,41.94]
[1755527182430,13.46161739,182.45,182.44,41.94]
[1755527182743,13.46161739,182.45,182.43,41.86]
[1755527182944,13.46161739,182.44,182.43,41.86]
[1755527183823,16.32140892,182.44,182.43,41.86]
[1755527184826,2.85979153,182.44,182.43,41.86]
[1755527185039,16.32140892,182.44,182.43,41.86]
[1755527185462,16.32140892,182.44,182.41,41.83]
[1755527185657,13.46161739,182.42,182.41,41.83]
[1755527187473,13.46161739,182.42,182.41,0.03]
[1755527188449,2.85979153,182.44,182.41,0.03]
[1755527188656,8.62019786,182.42,182.41,0.03]
[1755527189050,53.24039572,182.4,182.39,0.03]
[1755527189251,26.0,182.39,182.37,0.03]
[1755527189475,26.0,182.36,182.35,0.03]
[1755527189659,34.62019786,182.36,182.35,0.03]
[1755527189985,40.10385655,182.36,182.29,42.9]
[1755527190148,45.19280543,182.36,182.29,42.9]
[1755527190342,8.62019786,182.3,182.29,42.9]
[1755527190862,8.62019786,182.3,182.27,0.03]
[1755527191064,8.62019786,182.28,182.27,0.03]
[1755527191375,17.24039572,182.28,182.27,0.03]
[1755527191568,8.62019786,182.28,182.27,0.03]
[1755527192367,13.43190578,182.28,182.27,0.03]
[1755527193072,26.86381156,182.28,182.25,42.86]
[1755527193266,13.43190578,182.26,182.24,0.2]
[1755527193461,13.43190578,182.25,182.24,0.2]
[1755527194450,13.43190578,182.25,182.24,5.68726953]
[1755527195780,13.43190578,182.25,182.24,0.2]
[1755527195971,13.43190578,182.25,182.24,5.68726953]
[1755527196164,13.43190578,182.26,182.24,28.28726953]
[1755527197273,31.48360072,182.37,182.24,42.00544336]
[1755527197451,13.43190578,182.27,182.24,42.00544336]
[1755527198457,13.43190578,182.26,182.24,42.00544336]
[1755527199347,13.43190578,182.26,182.25,42.66]
[1755527199551,13.43190578,182.27,182.26,5.48666739]
[1755527202163,13.43190578,182.29,182.26,5.48666739]
[1755527202385,13.43190578,182.3,182.26,41.80333588]
[1755527202683,13.43190578,182.31,182.26,55.23524166]
[1755527203256,13.43190578,182.31,182.26,41.80333588]
[1755527203657,13.43190578,182.3,182.26,41.80333588]
[1755527203882,13.43190578,182.29,182.26,41.80333588]
[1755527204284,2.86138067,182.32,182.26,41.80333588]
[1755527204466,13.43190578,182.29,182.26,41.80333588]
[1755527205370,13.43190578,182.3,182.26,41.80333588]
[1755527206773,2.86138067,182.32,182.27,15.10621557]
[1755527207094,2.86138067,182.32,182.29,15.10621557]
[1755527207800,13.43190578,182.31,182.28,42.38]
[1755527208671,2.86138067,182.32,182.28,42.38]
[1755527208868,2.86138067,182.32,182.29,5.48576444]
[1755527209177,16.29328645,182.32,182.29,5.48576444]
[1755527209377,2.86138067,182.32,182.29,5.48576444]
[1755527209804,13.49190578,182.33,182.3,28.53812135]
[1755527209805,0.06,182.33,182.3,28.53812135]
[1755527209993,0.06,182.35,182.33,15.10621557]
[1755527210298,0.06,182.35,182.34,42.26]
[1755527210800,0.06,182.35,182.34,47.74426017]
[1755527210976,2.86013131,182.43,182.34,47.74426017]
[1755527210977,13.43190578,182.4,182.35,15.10621557]
[1755527211162,13.43190578,182.4,182.35,37.70621557]
[1755527211362,13.43190578,182.41,182.35,51.13812135]
[1755527211563,13.43190578,182.42,182.36,13.43190578]
[1755527211792,13.43190578,182.42,182.37,42.24]
[1755527212395,2.85966411,182.44,182.37,42.24]
[1755527212702,8.61631817,182.43,182.38,15.10621557]
[1755527212903,11.47598228,182.44,182.39,19.18964855]
[1755527213063,11.47598228,182.44,182.4,42.18]
[1755527213775,2.85966411,182.44,182.4,42.18]
[1755527213972,2.85966411,182.44,182.41,5.48215558]
[1755527214677,11.47598228,182.44,182.41,5.48215558]
[1755527215286,2.85966411,182.44,182.41,5.48215558]
[1755527215508,0.06,182.43,182.41,5.48215558]
[1755527219205,8.67631817,182.43,182.41,5.48215558]
[1755527219783,0.06,182.43,182.41,5.48215558]
[1755527220005,8.67631817,182.43,182.41,28.08215558]
[1755527220320,0.06,182.43,182.41,5.48215558]
[1755527220485,0.06,182.43,182.42,8.61631817]
[1755527220684,0.06,182.43,182.42,23.72253374]
[1755527220882,8.61631817,182.51,182.43,15.10621557]
[1755527221097,8.61631817,182.51,182.42,39.83263617]
[1755527221098,8.61631817,182.51,182.45,23.72253374]
[1755527221388,8.61631817,182.5,182.45,23.72253374]
[1755527221597,8.61631817,182.5,182.45,15.10621557]
[1755527221789,8.61631817,182.5,182.45,23.72253374]
[1755527222182,8.61631817,182.5,182.46,19.18228652]
[1755527222389,8.61631817,182.47,182.42,8.616318]
[1755527222609,26.0,182.49,182.43,42.86]
[1755527222810,8.61631817,182.44,182.42,42.86]
[1755527223008,8.61631817,182.43,182.42,42.86]
[1755527224603,5.48068164,182.46,182.42,42.86]
[1755527224793,8.61631817,182.43,182.42,42.86]
[1755527225916,5.48068164,182.46,182.42,42.86]
[1755527226213,8.61631817,182.46,182.42,48.34180715]
[1755527226425,2.85838807,182.53,182.42,48.34180715]
[1755527226426,8.61631817,182.47,182.42,48.34180715]
[1755527226724,8.61631817,182.48,182.43,15.10621557]
[1755527226904,8.61631817,182.51,182.45,8.61631817]
[1755527227097,8.61631817,182.52,182.46,51.33631817]
[1755527227721,2.85838807,182.53,182.47,5.48035293]
[1755527228026,2.85838807,182.53,182.47,14.0966711]
[1755527228027,11.47470624,182.53,182.47,14.0966711]
[1755527228520,0.06,182.55,182.51,8.61631817]
[1755527228696,0.06,182.55,182.52,42.72]
[1755527229015,0.06,182.55,182.52,51.33631817]
[1755527229318,0.06,182.55,182.52,42.72]
[1755527229707,0.06,182.55,182.53,5.47855147]
[1755527230907,13.38197211,182.54,182.51,5.47887888]
[1755527231109,0.06,182.55,182.52,42.7]
[1755527232119,13.44197211,182.55,182.52,42.7]
[1755527232606,0.06,182.55,182.52,42.7]
[1755527233136,0.06,182.55,182.53,18.86052358]
[1755527235332,0.06,182.55,182.54,15.10621557]
[1755527235510,0.06,182.55,182.54,51.08818768]
[1755527236999,0.06,182.55,182.54,65.24]
[1755527237207,0.06,182.55,182.54,65.18]
[1755527237537,0.06,182.55,182.54,70.65825134]
[1755527240733,0.06,182.55,182.54,48.05825134]
[1755527244859,0.06,182.55,182.54,61.44022345]
[1755527246058,1e-08,182.55,182.54,76.54643902]
[1755527246435,0.06,182.57,182.56,37.64621556]
[1755527246633,0.06,182.57,182.56,93.36818767]
[1755527246942,0.06,182.57,182.56,79.98621556]
[1755527247134,0.06,182.57,182.56,93.36818767]
[1755527248320,0.06,182.57,182.56,98.84583885]
[1755527250158,0.06,182.57,182.56,85.42386674]
[1755527250349,13.44197211,182.57,182.56,70.25765117]
[1755527250648,13.44197211,182.57,182.56,5.47765118]
[1755527250855,13.44197211,182.57,182.56,47.71765118]
[1755527252448,8.66271415,182.57,182.56,47.71765118]
[1755527253957,0.06,182.57,182.56,71.4265809]
[1755527254157,0.06,182.59,182.57,15.10621557]
[1755527254355,0.06,182.59,182.58,57.20621557]
[1755527254932,8.66271415,182.59,182.56,5.47765118]
[1755527255158,8.60271415,182.58,182.57,42.08]
[1755527255354,8.66271415,182.59,182.57,42.08]
[1755527255556,0.06,182.59,182.57,64.51999999]
[1755527256064,0.06,182.59,182.58,5.47705115]
[1755527256248,0.06,182.59,182.58,27.91705114]
[1755527257166,8.66271415,182.59,182.58,27.91705114]
[1755527257538,8.66271415,182.59,182.57,47.55730411]
[1755527257755,8.60271415,182.58,182.57,47.55730411]
[1755527259848,8.66271415,182.59,182.57,47.55730411]
[1755527260055,0.06,182.59,182.57,47.55730411]
[1755527261664,2.85665674,182.64,182.62,15.10621557]
[1755527261843,6.07747354,182.75,182.62,15.10621557]
[1755527261844,8.60271415,182.71,182.63,50.74271415]
[1755527262043,11.45850861,182.71,182.64,8.60271415]
[1755527262242,11.45850861,182.71,182.65,42.08]
[1755527262540,11.45850861,182.71,182.65,50.68271415]
[1755527262741,2.85579446,182.71,182.66,8.60271415]
[1755527262968,2.85579446,182.71,182.67,42.06]
[1755527263442,2.85579446,182.71,182.68,5.47405298]
[1755527263643,2.85579446,182.71,182.69,42.04]
[1755527265572,2.85579446,182.71,182.7,5.47345374]
[1755527267569,16.21615808,182.71,182.7,5.47345374]
[1755527268146,2.85579446,182.71,182.7,5.47345374]
[1755527268474,16.21615808,182.71,182.7,5.47345374]
[1755527268883,0.06,182.73,182.7,5.47345374]
[1755527268884,0.06,182.73,182.7,33.94003293]
[1755527269046,0.06,182.73,182.72,13.36036362]
[1755527269356,0.06,182.73,182.71,70.34657919]
[1755527269764,0.06,182.73,182.72,28.46657919]
[1755527269954,0.06,182.73,182.72,50.96657919]
[1755527270153,0.06,182.73,182.72,37.60621557]
[1755527270351,0.06,182.73,182.72,50.96657919]
[1755527270554,13.36036362,182.78,182.73,15.10621557]
[1755527270754,13.36036362,182.8,182.74,55.20036362]
[1755527270954,13.36036362,182.8,182.75,5.47195622]
[1755527271168,13.36036362,182.8,182.76,41.84]
[1755527271861,2.85436591,182.81,182.76,41.84]
[1755527271862,13.36036362,182.79,182.76,41.84]
[1755527273464,13.36036362,182.79,182.77,5.47135744]
[1755527273661,2.85436591,182.81,182.77,5.47135744]
[1755527273863,13.36036362,182.78,182.77,5.47135744]
[1755527274375,2.85436591,182.81,182.77,5.47135744]
[1755527274577,13.36036362,182.78,182.74,5.47218766]
[1755527274758,13.36036362,182.75,182.74,47.19218766]
[1755527275263,13.36036362,182.76,182.74,47.19218766]
[1755527276072,13.36036362,182.75,182.74,41.72]
[1755527276464,5.47076415,182.79,182.74,41.72]
[1755527276666,13.36036362,182.75,182.74,47.19225566]
[1755527276870,13.36036362,182.75,182.74,41.72]
[1755527278176,13.36036362,182.75,182.72,41.76]
[1755527278374,13.36036362,182.73,182.72,41.76]
[1755527278913,13.36036362,182.73,182.7,41.72]
[1755527279081,13.36036362,182.71,182.7,41.72]
[1755527280074,13.36036362,182.71,182.68,47.15399149]
[1755527280388,13.36036362,182.69,182.68,47.15399149]
[1755527280572,13.36036362,182.7,182.68,47.15399149]
[1755527281472,5.47229248,182.74,182.68,47.15399149]
[1755527281669,13.36036362,182.7,182.68,47.15399149]
[1755527283083,0.06,182.73,182.64,20.58138692]
[1755527283084,13.36036362,182.69,182.64,20.58138692]
[1755527283282,13.36036362,182.67,182.66,41.66]
[1755527283661,5.47285464,182.72,182.66,41.66]
[1755527283971,13.36036362,182.67,182.66,41.66]
[1755527284373,8.59266427,182.68,182.66,47.13465235]
[1755527285090,8.59266427,182.67,182.66,47.13465235]
[1755527285290,8.59266427,182.67,182.66,41.66]
[1755527286190,8.59266427,182.68,182.66,41.66]
[1755527286381,8.59266427,182.67,182.66,41.66]
[1755527290078,8.59266427,182.68,182.66,41.66]
[1755527290396,8.59266427,182.68,182.66,47.13464255]
[1755527291695,8.59266427,182.68,182.66,41.66]
[1755527291995,8.59266427,182.67,182.66,64.16]
[1755527292385,5.47285464,182.72,182.66,64.16]
[1755527292588,8.59266427,182.67,182.66,64.16]
[1755527293386,5.47285464,182.72,182.66,64.16]
[1755527293685,8.59266427,182.67,182.66,64.16]
[1755527295915,8.59266427,182.67,182.66,22.5]
[1755527296887,8.59266427,182.67,182.59,0.03]
[1755527297089,8.59266427,182.6,182.59,41.69]
[1755527297985,8.59266427,182.6,182.59,0.03]
[1755527299200,14.06911552,182.6,182.59,0.03]
[1755527303404,27.76024366,182.6,182.56,0.03]
[1755527303605,8.59266427,182.57,182.56,0.03]
[1755527304819,8.59266427,182.57,182.55,0.03]
[1755527305008,14.07031545,182.56,182.55,0.03]
[1755527305809,26.0,182.54,182.53,0.03]
[1755527305990,43.18532854,182.53,182.52,0.03]
[1755527306197,43.18532854,182.53,182.43,5.51132818]
[1755527306396,8.59266427,182.51,182.43,5.51132818]
[1755527307001,14.07181609,182.51,182.43,0.03]
[1755527307410,14.07181609,182.51,182.41,41.69]
[1755527307614,8.59266427,182.44,182.41,41.69]
[1755527308936,8.59266427,182.43,182.41,41.69]
[1755527309129,8.59266427,182.43,182.41,47.17209559]
[1755527309533,41.66,182.51,182.41,47.17209559]
[1755527309820,8.59266427,182.49,182.43,8.59266427]
[1755527310314,8.59266427,182.48,182.42,23.69887984]
[1755527310817,8.59266427,182.48,182.43,5.48155456]
[1755527311018,8.59266427,182.48,182.43,19.18544098]
[1755527311332,8.59266427,182.5,182.45,8.59266427]
[1755527311503,8.59266427,182.5,182.44,23.69887984]
[1755527311703,8.59266427,182.49,182.44,37.60621557]
[1755527312021,8.59266427,182.48,182.44,37.60621557]
[1755527312835,8.59266427,182.48,182.45,5.48095368]
[1755527314020,8.59266427,182.46,182.44,27.98120365]
[1755527316608,8.59266427,182.48,182.44,27.98120365]
[1755527317004,8.59266427,182.46,182.44,27.98120365]
[1755527317204,8.59266427,182.45,182.44,27.98120365]
[1755527317406,8.59266427,182.45,182.44,22.5]
[1755527317624,8.59266427,182.45,182.43,27.98154546]
[1755527317831,8.59266427,182.44,182.41,64.19]
[1755527318130,5.47982271,182.49,182.41,64.19]
[1755527318131,8.59266427,182.42,182.41,64.19]
[1755527318334,8.59266427,182.42,182.41,41.69]
[1755527318632,8.59266427,182.42,182.41,0.03]
[1755527319641,26.0,182.4,182.39,0.03]
[1755527319829,48.66778468,182.4,182.39,0.03]
[1755527320005,34.59266427,182.4,182.39,0.03]
[1755527320201,40.07512041,182.4,182.39,0.03]
[1755527320442,44.52119008,182.43,182.39,0.03]
[1755527320443,28.86119008,182.43,182.39,0.03]
[1755527320610,8.59266427,182.4,182.39,0.03]
[1755527321650,14.07512041,182.4,182.39,0.03]
[1755527322642,34.59266427,182.4,182.39,0.03]
[1755527324043,40.07512041,182.4,182.39,0.03]
[1755527324542,48.66778468,182.4,182.39,0.03]
[1755527324911,34.59266427,182.4,182.39,0.03]
[1755527325540,8.59266427,182.4,182.39,0.03]
[1755527326738,26.0,182.41,182.39,0.03]
[1755527326944,8.59266427,182.4,182.39,0.03]
[1755527328160,8.59266427,182.41,182.39,0.03]
[1755527330837,8.59266427,182.4,182.39,0.03]
[1755527331344,2.86036617,182.46,182.39,0.03]
[1755527331345,5.48095368,182.45,182.39,0.03]
[1755527331547,8.59266427,182.4,182.39,0.03]
[1755527332062,14.07512041,182.4,182.39,0.03]
[1755527332233,22.66778468,182.4,182.39,0.03]
[1755527332960,14.07512041,182.4,182.39,0.03]
[1755527333864,22.66778468,182.4,182.38,0.03]
[1755527334157,34.59266427,182.39,182.38,0.03]
[1755527335372,34.59266427,182.38,182.37,0.03]
[1755527335536,76.23266427,182.38,182.37,0.03]
[1755527335736,81.71572162,182.38,182.37,0.03]
[1755527336255,81.71572162,182.38,182.36,0.03]
[1755527336435,8.59266427,182.37,182.36,0.03]
[1755527337149,55.69602227,182.37,182.36,0.03]
[1755527337569,47.103358,182.37,182.36,0.03]
[1755527337739,55.71602227,182.37,182.36,0.03]
[1755527337943,8.59266427,182.37,182.36,0.03]
[1755527339072,14.07602227,182.37,182.36,0.03]
[1755527340648,17.72673687,182.37,182.36,0.03]
[1755527341136,17.72673687,182.37,182.35,0.03]
[1755527341340,40.07632296,182.36,182.35,0.03]
[1755527341536,26.0,182.34,182.33,0.03]
[1755527341771,76.21266427,182.34,182.33,0.03]
[1755527343478,81.69692444,182.34,182.33,0.03]
[1755527344668,40.07692444,182.34,182.33,0.03]
[1755527344865,81.69692444,182.34,182.33,0.03]
[1755527346073,8.59266427,182.34,182.33,0.03]
[1755527347955,14.07692444,182.34,182.33,0.03]
[1755527348159,17.73777704,182.34,182.29,0.03]
[1755527348361,8.59266427,182.3,182.29,0.03]
[1755527348551,50.21266427,182.3,182.29,0.03]
[1755527349488,41.62,182.3,182.29,0.03]
[1755527349792,50.21266427,182.3,182.29,0.03]
[1755527350090,55.69812779,182.3,182.29,0.03]
[1755527350380,50.21266427,182.3,182.29,0.03]
[1755527351075,8.59266427,182.3,182.29,0.03]
[1755527351581,14.07812779,182.3,182.29,0.03]
[1755527351782,17.74232509,182.3,182.29,0.03]
[1755527351983,14.07812779,182.3,182.29,0.03]
[1755527352165,17.74232509,182.3,182.29,0.03]
[1755527352370,14.07812779,182.3,182.29,0.03]
[1755527352571,17.74179947,182.3,182.29,0.03]
[1755527352873,9.1491352,182.3,182.29,0.03]
[1755527353067,8.59266427,182.3,182.29,0.03]
[1755527353259,50.19266427,182.3,182.29,0.03]
[1755527354894,26.0,182.28,182.27,0.03]
[1755527355060,76.19266427,182.28,182.27,0.03]
[1755527356593,34.59266427,182.28,182.27,0.03]
[1755527356889,76.19266427,182.28,182.27,0.03]
[1755527357286,81.67872966,182.28,182.27,0.03]
[1755527358287,76.19266427,182.28,182.27,0.03]
[1755527359365,81.67872966,182.28,182.27,0.03]
[1755527359567,90.27139393,182.28,182.27,0.03]
[1755527359773,90.27139393,182.28,182.25,0.03]
[1755527359774,26.0,182.26,182.25,0.03]
[1755527359973,76.19266427,182.26,182.25,0.03]
[1755527361076,81.65933166,182.26,182.25,0.03]
[1755527361582,76.17266427,182.26,182.25,0.03]
[1755527361891,34.59266427,182.26,182.25,0.03]
[1755527362188,40.07933166,182.26,182.25,0.03]
[1755527362966,81.65933166,182.26,182.25,0.03]
[1755527363166,76.17266427,182.26,182.25,0.03]
[1755527365173,81.65933166,182.26,182.25,0.03]
[1755527365712,8.59266427,182.26,182.25,0.03]
[1755527367706,14.07933166,182.26,182.25,0.03]
[1755527368084,8.59266427,182.26,182.25,0.03]
[1755527368989,41.58,182.27,182.25,0.03]
[1755527369184,8.59266427,182.26,182.25,0.03]
[1755527370098,50.15266427,182.26,182.25,0.03]
[1755527371092,55.63933166,182.26,182.25,0.03]
[1755527371704,50.15266427,182.26,182.25,0.03]
[1755527371917,41.56,182.26,182.25,0.03]
[1755527372105,55.63933166,182.26,182.25,0.03]
[1755527372508,50.15266427,182.26,182.25,0.03]
[1755527373712,55.63933166,182.26,182.25,0.03]
[1755527374296,50.15266427,182.26,182.25,0.03]
[1755527374725,55.63933166,182.26,182.25,0.03]
[1755527376321,50.15266427,182.26,182.25,0.03]
[1755527376704,8.59266427,182.26,182.25,0.03]
[1755527377226,67.56,182.27,182.25,0.03]
[1755527377429,8.59266427,182.26,182.25,0.03]
[1755527380211,14.07933166,182.26,182.25,0.03]
[1755527380410,17.76650375,182.26,182.25,0.03]
[1755527380609,8.59266427,182.25,182.24,0.2]
[1755527380827,50.13266427,182.25,182.24,0.2]
[1755527381526,55.61963271,182.25,182.24,0.2]
[1755527381715,59.30738812,182.25,182.24,0.2]
[1755527381909,59.30738812,182.25,182.23,0.03]
[1755527382111,12.28041968,182.24,182.23,0.03]
[1755527382703,12.28041968,182.24,182.14,23.89887984]
[1755527382906,2.92233509,182.29,182.18,8.59266427]
[1755527383122,8.59266427,182.24,182.18,8.59266427]
[1755527383444,8.59266427,182.21,182.15,8.59266427]
[1755527383609,8.59266427,182.21,182.15,15.10621557]
[1755527383802,8.59266427,182.21,182.15,8.59266427]
[1755527384139,8.59266427,182.21,182.16,15.10621557]
[1755527385518,8.59266427,182.21,182.17,5.48937805]
[1755527386349,8.59266427,182.23,182.18,15.10621557]
[1755527386530,41.52,182.26,182.18,15.10621557]
[1755527386715,8.59266427,182.23,182.18,15.10621557]
[1755527386909,41.52,182.26,182.18,23.69887984]
[1755527387151,8.59266427,182.25,182.2,15.10621557]
[1755527387632,8.59266427,182.25,182.21,5.48817298]
[1755527388140,0.06,182.27,182.24,15.10621557]
[1755527388642,0.06,182.27,182.26,15.10621557]
[1755527389629,0.06,182.27,182.26,20.59288296]
[1755527390319,0.06,182.27,182.26,5.48666739]
[1755527390515,8.65266427,182.27,182.26,5.48666739]
[1755527390725,0.06,182.27,182.26,5.48666739]
[1755527390923,8.65266427,182.27,182.26,5.48666739]
[1755527391516,8.65266427,182.27,182.25,5.48696844]
[1755527392243,0.06,182.27,182.25,5.48696844]
[1755527392432,8.59266427,182.26,182.25,5.48696844]
[1755527393624,8.59266427,182.26,182.24,20.5934851]
[1755527395235,8.65266427,182.27,182.24,20.5934851]
[1755527395442,8.59266427,182.26,182.24,20.5934851]
[1755527395634,0.06,182.27,182.22,5.4878718]
[1755527395635,8.59266427,182.25,182.22,5.4878718]
[1755527395823,8.59266427,182.23,182.22,20.59408737]
[1755527396022,8.59266427,182.23,182.22,5.4878718]
[1755527396749,0.06,182.27,182.22,5.4878718]
[1755527396943,3.75460164,182.27,182.22,5.4878718]
[1755527397243,8.59266427,182.25,182.22,20.59408737]
[1755527399924,0.06,182.27,182.22,20.59408737]
[1755527400124,8.59266427,182.24,182.22,20.59408737]
[1755527400449,8.59266427,182.23,182.16,15.10621557]
[1755527400654,8.59266427,182.17,182.13,0.03]
[1755527400840,8.59266427,182.15,182.13,0.03]
[1755527401026,8.59266427,182.15,182.13,5.52049274]
[1755527401545,8.59266427,182.15,182.13,0.03]
[1755527401743,3.69600646,182.19,182.14,5.6902822]
[1755527401744,8.59266427,182.16,182.14,5.6902822]
[1755527402131,8.59266427,182.15,182.14,0.2]
[1755527402927,8.59266427,182.15,182.14,5.6902822]
[1755527403654,71.83759995,182.24,182.14,5.6902822]
[1755527403835,8.59266427,182.18,182.14,5.6902822]
[1755527404053,8.59266427,182.17,182.14,5.6902822]
[1755527404239,8.59266427,182.17,182.14,20.79649777]
[1755527404548,26.0,182.24,182.15,23.69887984]
[1755527404721,26.0,182.24,182.14,19.4159877]
[1755527404722,8.59266427,182.21,182.14,19.4159877]
[1755527404924,8.59266427,182.18,182.15,15.10621557]
[1755527405149,8.59266427,182.17,182.15,15.10621557]
[1755527405458,8.59266427,182.18,182.15,15.10621557]
[1755527405753,8.59266427,182.16,182.14,5.6902822]
[1755527406054,8.59266427,182.15,182.14,0.2]
[1755527406350,18.94272343,182.15,182.14,0.2]
[1755527406603,18.94272343,182.15,182.11,0.03]
[1755527406604,26.0,182.12,182.11,0.03]
[1755527406850,39.45274265,182.12,182.11,0.03]
[1755527407053,39.45274265,182.12,182.09,0.03]
[1755527407255,13.45274265,182.1,182.03,2.200886]
[1755527407558,13.45274265,182.04,182.02,0.2]